[Event "TOP 12 FEMININ 2022 - Phase 1"]
[Site "MULHOUSE, France"]
[Date "2022.04.09"]
[Round "3.6"]
[White "NAVROTESCU  MUL, Andreea"]
[Black "ARMAS LES, Lara-Maria"]
[Result "1-0"]
[TimeControl "90 min +30 secondes par coup"]
[WhiteElo "2275"]
[BlackElo "1901"]

1. c4 {[%clk 01:30:56]} {[%emt 00:00:03]} e5 {[%clk 01:29:04]} {[%emt
00:01:57]} 2. Nc3 {[%clk 01:31:14]} {[%emt 00:00:12]} g6 {[%clk 01:28:46]}
{[%emt 00:00:48]} 3. d4 {[%clk 01:30:29]} {[%emt 00:01:15]} Nc6 {[%clk
01:20:35]} {[%emt 00:08:41]} 4. d5 {[%clk 01:30:06]} {[%emt 00:00:53]} Nce7
{[%clk 01:18:48]} {[%emt 00:02:17]} 5. e4 {[%clk 01:30:02]} {[%emt 00:00:33]}
d6 {[%clk 01:18:42]} {[%emt 00:00:37]} 6. h4 {[%clk 01:30:09]} {[%emt
00:00:23]} h6 {[%clk 01:17:21]} {[%emt 00:01:51]} 7. Be3 {[%clk 01:29:02]}
{[%emt 00:01:36]} Bg7 {[%clk 01:16:43]} {[%emt 00:01:09]} 8. f3 {[%clk
01:27:18]} {[%emt 00:02:12]} f5 {[%clk 01:16:07]} {[%emt 00:01:08]} 9. Qd2
{[%clk 01:26:33]} {[%emt 00:01:12]} Nf6 {[%clk 01:14:51]} {[%emt 00:01:49]} 10.
Nge2 {[%clk 01:25:35]} {[%emt 00:01:26]} Bd7 {[%clk 01:08:11]} {[%emt
00:07:12]} 11. g3 {[%clk 01:19:27]} {[%emt 00:06:36]} a6 {[%clk 01:03:06]}
{[%emt 00:05:36]} 12. Nc1 {[%clk 01:13:15]} {[%emt 00:06:41]} fxe4 {[%clk
00:59:01]} {[%emt 00:04:36]} 13. fxe4 {[%clk 01:06:49]} {[%emt 00:06:56]} Ng4
{[%clk 00:58:05]} {[%emt 00:01:27]} 14. Bh3 {[%clk 01:06:21]} {[%emt 00:00:55]}
Nxe3 {[%clk 00:57:05]} {[%emt 00:01:33]} 15. Bxd7+ {[%clk 01:06:13]} {[%emt
00:00:37]} Qxd7 {[%clk 00:57:31]} {[%emt 00:00:05]} 16. Qxe3 {[%clk 01:06:33]}
{[%emt 00:00:07]} O-O {[%clk 00:50:48]} {[%emt 00:07:15]} 17. Nd3 {[%clk
01:01:43]} {[%emt 00:05:19]} Rf7 {[%clk 00:45:22]} {[%emt 00:05:58]} 18. O-O-O
{[%clk 00:59:49]} {[%emt 00:02:23]} Raf8 {[%clk 00:44:45]} {[%emt 00:01:08]} 19.
Qe2 {[%clk 00:52:35]} {[%emt 00:07:43]} Rf3 {[%clk 00:32:46]} {[%emt 00:12:30]}
20. Rhf1 {[%clk 00:47:20]} {[%emt 00:05:44]} Qg4 {[%clk 00:28:53]} {[%emt
00:04:24]} 21. Rxf3 {[%clk 00:39:01]} {[%emt 00:08:49]} Qxf3 {[%clk 00:27:50]}
{[%emt 00:01:33]} 22. Rg1 {[%clk 00:25:53]} {[%emt 00:13:36]} h5 {[%clk
00:25:14]} {[%emt 00:03:07]} 23. Qxf3 {[%clk 00:24:50]} {[%emt 00:01:33]} Rxf3
{[%clk 00:25:42]} {[%emt 00:00:02]} 24. Kc2 {[%clk 00:25:01]} {[%emt 00:00:19]}
Bh6 {[%clk 00:24:16]} {[%emt 00:01:56]} 25. Nd1 {[%clk 00:23:02]} {[%emt
00:02:27]} Kh7 {[%clk 00:20:43]} {[%emt 00:04:05]} 26. Ne1 {[%clk 00:23:12]}
{[%emt 00:00:20]} Rf8 {[%clk 00:21:07]} {[%emt 00:00:07]} 27. Kd3 {[%clk
00:22:00]} {[%emt 00:01:41]} Ng8 {[%clk 00:20:44]} {[%emt 00:00:53]} 28. Rg2
{[%clk 00:21:23]} {[%emt 00:01:07]} Nf6 {[%clk 00:20:01]} {[%emt 00:01:13]} 29.
Rf2 {[%clk 00:21:41]} {[%emt 00:00:12]} Kg7 {[%clk 00:19:04]} {[%emt 00:01:27]}
30. b4 {[%clk 00:21:12]} {[%emt 00:00:58]} c6 {[%clk 00:18:32]} {[%emt
00:01:03]} 31. a4 {[%clk 00:19:40]} {[%emt 00:02:02]} cxd5 {[%clk 00:16:44]}
{[%emt 00:02:19]} 32. cxd5 {[%clk 00:19:05]} {[%emt 00:01:04]} Rc8 {[%clk
00:17:07]} {[%emt 00:00:06]} 33. Rc2 {[%clk 00:19:20]} {[%emt 00:00:15]} Rxc2
{[%clk 00:17:29]} {[%emt 00:00:10]} 34. Nxc2 {[%clk 00:19:48]} {[%emt
00:00:02]} Kf7 {[%clk 00:17:31]} {[%emt 00:00:28]} 35. Na3 {[%clk 00:17:52]}
{[%emt 00:02:25]} Ke7 {[%clk 00:17:07]} {[%emt 00:00:54]} 36. Nc4 {[%clk
00:18:01]} {[%emt 00:00:20]} Kd7 {[%clk 00:16:38]} {[%emt 00:01:00]} 37. Nc3
{[%clk 00:18:24]} {[%emt 00:00:07]} Ng4 {[%clk 00:10:15]} {[%emt 00:06:54]} 38.
Ke2 {[%clk 00:17:38]} {[%emt 00:01:15]} Bf8 {[%clk 00:07:14]} {[%emt 00:03:31]}
39. b5 {[%clk 00:15:33]} {[%emt 00:02:35]} axb5 {[%clk 00:07:22]} {[%emt
00:00:22]} 40. Nxb5 {[%clk 00:15:28]} {[%emt 00:00:35]} Be7 {[%clk 00:07:27]}
{[%emt 00:00:26]} 41. Nb6+ {[%clk 00:15:23]} {[%emt 00:00:34]} Kd8 {[%clk
00:05:07]} {[%emt 00:02:50]} 42. Na8 {[%clk 00:15:45]} {[%emt 00:00:07]} Kd7
{[%clk 00:04:31]} {[%emt 00:01:08]} 43. Nac7 {[%clk 00:15:29]} {[%emt
00:00:45]} Bd8 {[%clk 00:04:39]} {[%emt 00:00:22]} 44. Ne6 {[%clk 00:15:57]}
{[%emt 00:00:02]} Be7 {[%clk 00:04:55]} {[%emt 00:00:14]} 45. Na3 {[%clk
00:16:14]} {[%emt 00:00:13]} Nf6 {[%clk 00:02:08]} {[%emt 00:03:18]} 46. Kd3
{[%clk 00:15:30]} {[%emt 00:01:14]} Nh7 {[%clk 00:02:15]} {[%emt 00:00:23]} 47.
Nc4 {[%clk 00:15:40]} {[%emt 00:00:19]} Nf8 {[%clk 00:01:40]} {[%emt 00:01:06]}
48. Nb6+ {[%clk 00:15:56]} {[%emt 00:00:13]} Ke8 {[%clk 00:02:01]} {[%emt
00:00:09]} 49. Kc4 {[%clk 00:14:11]} {[%emt 00:02:15]} Nxe6 {[%clk 00:01:16]}
{[%emt 00:01:16]} 50. dxe6 {[%clk 00:14:38]} {[%emt 00:00:02]} g5 {[%clk
00:00:49]} {[%emt 00:00:58]} 51. hxg5 {[%clk 00:14:10]} {[%emt 00:00:58]} Bxg5
{[%clk 00:00:57]} {[%emt 00:00:22]} 52. Kd5 {[%clk 00:14:34]} {[%emt 00:00:06]}
Be3 {[%clk 00:00:39]} {[%emt 00:00:48]} 53. Nc4 {[%clk 00:14:30]} {[%emt
00:00:33]} Bf2 {[%clk 00:00:52]} {[%emt 00:00:18]} 54. Nxd6+ {[%clk 00:14:48]}
{[%emt 00:00:11]} Kd8 {[%emt 00:00:54]} 1-0

[Event "TOP 12 FEMININ 2022 - Phase 1"]
[Site "MULHOUSE, France"]
[Date "2022.04.09"]
[Round "3.7"]
[White "LE BAIL  LES, Clara"]
[Black "HAUSSERNOT  MUL, Cecile"]
[Result "0-1"]
[TimeControl "90 min +30 secondes par coup"]
[WhiteElo "1960"]
[BlackElo "2108"]

1. e4 {[%clk 01:29:09]} {[%emt 00:01:49]} c5 {[%clk 01:21:46]} {[%emt
00:09:15]} 2. c3 {[%clk 01:29:09]} {[%emt 00:00:30]} Nf6 {[%clk 01:20:09]}
{[%emt 00:02:07]} 3. e5 {[%clk 01:28:39]} {[%emt 00:01:00]} Nd5 {[%clk
01:16:35]} {[%emt 00:04:04]} 4. d4 {[%clk 01:28:35]} {[%emt 00:00:34]} cxd4
{[%clk 01:16:50]} {[%emt 00:00:16]} 5. Qxd4 {[%clk 01:28:27]} {[%emt 00:00:38]}
e6 {[%clk 01:16:48]} {[%emt 00:00:32]} 6. Nf3 {[%clk 01:27:58]} {[%emt
00:00:58]} Nc6 {[%clk 01:17:03]} {[%emt 00:00:15]} 7. Qe4 {[%clk 01:27:39]}
{[%emt 00:00:49]} f5 {[%clk 01:14:42]} 8. Qe2 {[%clk 01:26:48]} {[%emt
00:04:12]} Be7 {[%clk 01:13:38]} 9. g3 {[%clk 01:25:56]} {[%emt 00:02:56]} O-O
{[%clk 01:13:41]} 10. Bg2 {[%clk 01:25:17]} {[%emt 00:01:36]} Rb8 {[%clk
01:07:10]} 11. O-O {[%clk 01:17:03]} {[%emt 00:15:45]} b5 {[%clk 01:06:58]} 12.
a4 {[%clk 01:07:30]} {[%emt 00:10:46]} b4 {[%clk 00:59:26]} 13. c4 {[%clk
01:06:45]} {[%emt 00:09:17]} Ba6 {[%clk 00:57:24]} 14. Re1 {[%clk 01:03:17]}
{[%emt 00:06:30]} b3 {[%clk 00:53:11]} 15. Na3 {[%emt 00:09:01]} Bxa3 16. Rxa3
Na5 17. Nd4 {[%clk 00:59:28]} Bxc4 {[%clk 00:50:07]} 18. Qd1 {[%clk 00:47:11]}
{[%emt 00:23:45]} Qb6 {[%clk 00:34:38]} 19. Bf1 {[%clk 00:32:43]} {[%emt
00:25:32]} Bxf1 {[%clk 00:33:14]} 20. Kxf1 {[%clk 00:32:33]} {[%emt 00:02:34]}
f4 {[%clk 00:33:10]} {[%emt 00:00:36]} 21. Re4 {[%clk 00:27:19]} {[%emt
00:05:44]} Qb7 {[%clk 00:30:39]} {[%emt 00:03:01]} 22. Qd3 {[%clk 00:13:53]}
{[%emt 00:13:55]} Nb4 {[%clk 00:23:47]} {[%emt 00:07:21]} 23. Qe2 {[%clk
00:10:54]} {[%emt 00:03:30]} Nc4 {[%clk 00:22:50]} {[%emt 00:01:27]} 24. Rxb3
{[%clk 00:10:19]} {[%emt 00:01:05]} Ne3+ {[%clk 00:23:05]} {[%emt 00:00:15]} 25.
Rbxe3 {[%clk 00:10:00]} {[%emt 00:00:49]} fxe3 {[%clk 00:23:30]} {[%emt
00:00:05]} 26. Qxe3 {[%clk 00:10:15]} {[%emt 00:00:15]} Rbc8 {[%clk 00:22:32]}
{[%emt 00:01:28]} 27. Bd2 {[%clk 00:08:33]} {[%emt 00:02:11]} Nc2 {[%clk
00:22:00]} {[%emt 00:01:02]} 28. Nxc2 {[%clk 00:07:02]} {[%emt 00:02:02]} Rxc2
{[%clk 00:21:45]} {[%emt 00:00:46]} 29. Ke2 {[%clk 00:06:21]} {[%emt 00:01:10]}
Qa6+ {[%clk 00:21:38]} {[%emt 00:00:38]} 30. Kd1 {[%clk 00:05:17]} {[%emt
00:01:33]} Rxb2 {[%clk 00:21:56]} {[%emt 00:00:12]} 31. Qe2 {[%clk 00:05:12]}
{[%emt 00:00:35]} Qb6 {[%clk 00:20:52]} {[%emt 00:01:34]} 32. Re3 {[%clk
00:03:42]} {[%emt 00:02:00]} Rb1+ {[%clk 00:17:33]} {[%emt 00:03:49]} 33. Kc2
{[%clk 00:04:01]} {[%emt 00:00:10]} Qb2+ {[%clk 00:16:44]} {[%emt 00:01:20]} 34.
Kd3 {[%clk 00:04:20]} {[%emt 00:00:12]} Qb3+ {[%clk 00:16:53]} {[%emt
00:00:20]} 35. Bc3 {[%clk 00:04:29]} {[%emt 00:00:21]} Rd1+ {[%clk 00:17:09]}
{[%emt 00:00:13]} 0-1

[Event "TOP 12 FEMININ 2022 - Phase 1"]
[Site "MULHOUSE, France"]
[Date "2022.04.09"]
[Round "3.8"]
[White "RICHARD  MUL, Emma"]
[Black "BISMUTH LES, Lea"]
[Result "1-0"]
[TimeControl "90 min +30 secondes par coup"]
[WhiteElo "2144"]
[BlackElo "1957"]

1. e4 {[%clk 01:25:57]} {[%emt 00:03:58]} e5 {[%clk 01:29:39]} {[%emt
00:01:22]} 2. Nf3 {[%clk 01:26:17]} {[%emt 00:00:09]} Nc6 {[%clk 01:30:03]}
{[%emt 00:00:06]} 3. Bb5 {[%clk 01:26:39]} {[%emt 00:00:08]} f5 {[%clk
01:30:20]} {[%emt 00:00:14]} 4. d3 {[%clk 01:27:02]} {[%emt 00:00:07]} fxe4
{[%clk 01:30:28]} {[%emt 00:00:22]} 5. dxe4 {[%clk 01:27:26]} {[%emt 00:00:06]}
Nf6 {[%clk 01:30:52]} {[%emt 00:00:06]} 6. Bc4 {[%clk 01:27:15]} {[%emt
00:00:41]} Bb4+ {[%clk 01:29:38]} {[%emt 00:01:42]} 7. c3 {[%clk 01:25:32]}
{[%emt 00:02:14]} Bc5 {[%clk 01:29:40]} {[%emt 00:00:27]} 8. O-O {[%clk
01:22:19]} {[%emt 00:03:44]} d6 {[%clk 01:29:44]} {[%emt 00:00:26]} 9. Ng5
{[%clk 01:12:06]} {[%emt 00:10:43]} Qe7 {[%clk 01:25:31]} {[%emt 00:04:42]} 10.
Bf7+ {[%clk 01:06:00]} {[%emt 00:06:38]} Kf8 {[%clk 01:20:55]} {[%emt
00:05:06]} 11. Bd5 {[%clk 01:00:15]} {[%emt 00:06:15]} Nd8 {[%clk 01:19:30]}
{[%emt 00:01:54]} 12. Be3 {[%clk 00:54:39]} {[%emt 00:06:07]} c6 {[%clk
01:09:59]} {[%emt 00:10:00]} 13. Bb3 {[%clk 00:45:34]} {[%emt 00:09:35]} h6
{[%clk 01:08:57]} {[%emt 00:01:32]} 14. Bxc5 {[%clk 00:45:26]} {[%emt
00:00:39]} dxc5 {[%clk 01:08:59]} {[%emt 00:00:28]} 15. Nf3 {[%clk 00:45:48]}
{[%emt 00:00:08]} Bg4 {[%clk 01:06:14]} {[%emt 00:03:14]} 16. Qd3 {[%clk
00:40:07]} {[%emt 00:06:11]} Ne6 {[%clk 01:02:36]} {[%emt 00:04:07]} 17. Bxe6
{[%clk 00:35:36]} {[%emt 00:05:02]} Qxe6 {[%clk 00:59:30]} {[%emt 00:03:36]} 18.
Nbd2 {[%clk 00:34:57]} {[%emt 00:01:10]} Ke7 {[%clk 00:55:34]} {[%emt
00:04:25]} 19. h3 {[%clk 00:25:20]} {[%emt 00:10:08]} Bh5 {[%clk 00:53:53]}
{[%emt 00:02:10]} 20. Nh4 {[%clk 00:24:01]} {[%emt 00:01:50]} Rad8 {[%clk
00:50:00]} {[%emt 00:04:22]} 21. Qe3 {[%clk 00:23:40]} {[%emt 00:00:51]} b6
{[%clk 00:46:40]} {[%emt 00:03:49]} 22. Ndf3 {[%clk 00:23:09]} {[%emt
00:01:02]} Rd7 {[%clk 00:33:05]} {[%emt 00:14:05]} 23. Nf5+ {[%clk 00:19:15]}
{[%emt 00:04:24]} Kf7 {[%clk 00:31:28]} {[%emt 00:02:07]} 24. Rfd1 {[%clk
00:18:40]} {[%emt 00:01:05]} Rhd8 {[%clk 00:29:59]} {[%emt 00:01:59]} 25. Rxd7+
{[%clk 00:19:03]} {[%emt 00:00:07]} Rxd7 {[%clk 00:30:17]} {[%emt 00:00:12]} 26.
g4 {[%clk 00:15:44]} {[%emt 00:03:49]} Bg6 {[%clk 00:30:02]} {[%emt 00:00:46]}
27. Re1 {[%clk 00:08:35]} {[%emt 00:07:38]} Kf8 {[%clk 00:22:52]} {[%emt
00:07:39]} 28. a4 {[%clk 00:04:41]} {[%emt 00:04:25]} c4 {[%clk 00:16:48]}
{[%emt 00:06:33]} 29. N3h4 {[%clk 00:03:20]} {[%emt 00:01:52]} Bh7 {[%clk
00:11:24]} {[%emt 00:05:54]} 30. f3 {[%clk 00:03:31]} {[%emt 00:00:19]} Rd3
{[%clk 00:11:19]} {[%emt 00:00:34]} 31. Qe2 {[%clk 00:03:37]} {[%emt 00:00:25]}
Nd7 {[%clk 00:11:27]} {[%emt 00:00:22]} 32. a5 {[%clk 00:03:46]} {[%emt
00:00:21]} Nc5 {[%clk 00:08:12]} {[%emt 00:03:44]} 33. axb6 {[%clk 00:03:06]}
{[%emt 00:01:11]} axb6 {[%clk 00:08:40]} {[%emt 00:00:02]} 34. Ne3 {[%clk
00:02:50]} {[%emt 00:00:46]} b5 {[%clk 00:03:06]} {[%emt 00:06:02]} 35. Ra1
{[%clk 00:01:51]} {[%emt 00:01:31]} Qd7 {[%clk 00:02:04]} {[%emt 00:01:32]} 36.
Nf1 {[%clk 00:02:03]} {[%emt 00:00:18]} Kf7 {[%clk 00:01:05]} {[%emt 00:01:29]}
37. Qf2 {[%clk 00:02:02]} {[%emt 00:00:31]} Qe7 {[%clk 00:00:36]} {[%emt
00:00:58]} 38. Ng2 {[%clk 00:02:03]} {[%emt 00:00:30]} g5 {[%clk 00:00:37]}
{[%emt 00:00:29]} 39. h4 {[%clk 00:01:05]} {[%emt 00:01:29]} Ke6 {[%clk
00:00:35]} {[%emt 00:00:31]} 40. hxg5 {[%clk 00:01:25]} {[%emt 00:00:11]} hxg5
{[%clk 00:01:04]} 41. Ne1 {[%clk 00:01:12]} {[%emt 00:00:42]} Rd7 {[%clk
00:01:25]} {[%emt 00:00:08]} 42. Qh2 {[%clk 00:01:28]} {[%emt 00:00:14]} Qf6
{[%clk 00:01:19]} {[%emt 00:00:36]} 43. Ne3 {[%clk 00:01:32]} {[%emt 00:00:27]}
Bg6 {[%clk 00:01:16]} {[%emt 00:00:33]} 44. Nf5 {[%clk 00:00:55]} {[%emt
00:01:07]} Nd3 {[%clk 00:00:36]} {[%emt 00:01:10]} 45. Nxd3 {[%clk 00:00:53]}
{[%emt 00:00:33]} cxd3 {[%clk 00:01:04]} {[%emt 00:00:01]} 46. Qf2 {[%clk
00:00:36]} {[%emt 00:00:48]} Bxf5 {[%clk 00:00:54]} {[%emt 00:00:39]} 47. exf5+
{[%clk 00:00:58]} {[%emt 00:00:07]} Kf7 {[%clk 00:01:22]} {[%emt 00:00:03]} 48.
Qe3 {[%clk 00:01:04]} {[%emt 00:00:24]} Kg7 {[%clk 00:00:35]} {[%emt 00:01:17]}
49. Rd1 {[%clk 00:01:16]} {[%emt 00:00:18]} Kh6 {[%emt 00:00:36]} 1-0

[Event "TOP 12 FEMININ 2022 - Phase 1"]
[Site "MULHOUSE, France"]
[Date "2022.04.09"]
[Round "3.9"]
[White "BATSIASHVILI JUV, Nino"]
[Black "SAVINA VAN, Anastasia"]
[Result "1-0"]
[TimeControl "90 min +30 secondes par coup"]
[WhiteElo "2463"]
[BlackElo "2345"]

1. d4 {[%clk 01:30:28]} {[%emt 00:00:33]} Nf6 {[%clk 01:30:15]} {[%emt
00:00:44]} 2. c4 {[%clk 01:30:49]} {[%emt 00:00:09]} g6 {[%clk 01:30:29]}
{[%emt 00:00:16]} 3. Nc3 {[%clk 01:31:15]} {[%emt 00:00:04]} Bg7 {[%clk
01:30:55]} {[%emt 00:00:04]} 4. e4 {[%clk 01:31:39]} {[%emt 00:00:05]} d6
{[%clk 01:31:22]} {[%emt 00:00:04]} 5. h3 {[%clk 01:32:05]} {[%emt 00:00:04]}
O-O {[%clk 01:29:54]} {[%emt 00:01:58]} 6. Be3 {[%clk 01:32:26]} {[%emt
00:00:08]} c5 {[%clk 01:27:36]} {[%emt 00:02:48]} 7. Nf3 {[%clk 01:32:33]}
{[%emt 00:00:22]} Na6 {[%clk 01:27:37]} {[%emt 00:00:30]} 8. Be2 {[%clk
01:30:30]} {[%emt 00:02:33]} b6 {[%clk 01:24:21]} {[%emt 00:03:46]} 9. O-O
{[%clk 01:26:28]} {[%emt 00:04:32]} cxd4 {[%clk 01:23:25]} {[%emt 00:01:27]} 10.
Nxd4 {[%clk 01:25:48]} {[%emt 00:01:09]} Bb7 {[%clk 01:23:43]} {[%emt
00:00:12]} 11. Bf3 {[%clk 01:25:29]} {[%emt 00:00:49]} Rc8 {[%clk 01:17:41]}
{[%emt 00:06:33]} 12. b3 {[%clk 01:23:43]} {[%emt 00:02:16]} Nc5 {[%clk
01:16:38]} {[%emt 00:01:33]} 13. Qc2 {[%clk 01:21:56]} {[%emt 00:02:17]} a6
{[%clk 01:08:48]} {[%emt 00:08:20]} 14. b4 {[%clk 01:09:28]} {[%emt 00:12:58]}
e5 {[%clk 00:51:29]} {[%emt 00:17:48]} 15. bxc5 {[%clk 01:02:06]} {[%emt
00:07:53]} exd4 {[%clk 00:51:07]} {[%emt 00:00:52]} 16. Bxd4 {[%clk 01:02:31]}
{[%emt 00:00:05]} bxc5 {[%clk 00:35:09]} {[%emt 00:16:29]} 17. Be3 {[%clk
01:02:55]} {[%emt 00:00:05]} Nd7 {[%clk 00:34:36]} {[%emt 00:01:03]} 18. Rab1
{[%clk 01:02:49]} {[%emt 00:00:36]} Ba8 {[%clk 00:31:34]} {[%emt 00:03:32]} 19.
Rfd1 {[%clk 00:59:22]} {[%emt 00:03:57]} Ne5 {[%clk 00:28:49]} {[%emt
00:03:15]} 20. Be2 {[%clk 00:59:39]} {[%emt 00:00:12]} Nc6 {[%clk 00:27:31]}
{[%emt 00:01:48]} 21. Bg4 {[%clk 00:53:37]} {[%emt 00:06:32]} f5 {[%clk
00:20:29]} {[%emt 00:07:33]} 22. exf5 {[%clk 00:53:03]} {[%emt 00:01:04]} Nd4
{[%clk 00:19:24]} {[%emt 00:01:35]} 23. Bxd4 {[%clk 00:48:40]} {[%emt
00:04:52]} cxd4 {[%clk 00:18:12]} {[%emt 00:01:43]} 24. f6 {[%clk 00:40:41]}
{[%emt 00:08:29]} Qxf6 {[%clk 00:12:39]} {[%emt 00:06:02]} 25. Bxc8 {[%clk
00:41:05]} {[%emt 00:00:07]} Rxc8 {[%clk 00:12:52]} {[%emt 00:00:17]} 26. Ne2
{[%clk 00:39:28]} {[%emt 00:02:06]} Qg5 {[%clk 00:05:07]} {[%emt 00:08:16]} 27.
Ng3 {[%clk 00:38:38]} {[%emt 00:01:19]} h5 {[%clk 00:04:40]} {[%emt 00:00:58]}
28. h4 {[%clk 00:35:10]} {[%emt 00:03:58]} Qf6 {[%clk 00:01:51]} {[%emt
00:03:19]} 29. Qd3 {[%clk 00:33:07]} {[%emt 00:02:32]} Rf8 {[%clk 00:01:16]}
{[%emt 00:01:05]} 30. Rd2 {[%clk 00:33:28]} {[%emt 00:00:10]} Bh6 {[%clk
00:00:34]} {[%emt 00:01:12]} 31. Re2 {[%clk 00:31:41]} {[%emt 00:02:16]} Bf4
{[%clk 00:00:35]} {[%emt 00:00:30]} 32. Rbe1 {[%clk 00:28:34]} {[%emt
00:03:36]} Be5 {[%clk 00:00:34]} {[%emt 00:00:32]} 33. c5 {[%clk 00:27:21]}
{[%emt 00:01:43]} dxc5 {[%clk 00:00:39]} {[%emt 00:00:25]} 34. Qc4+ {[%clk
00:27:34]} {[%emt 00:00:17]} Kh8 {[%clk 00:00:32]} {[%emt 00:00:37]} 35. Qxc5
{[%clk 00:27:45]} {[%emt 00:00:19]} Bd6 {[%clk 00:00:36]} {[%emt 00:00:26]} 36.
Qg5 {[%clk 00:25:40]} {[%emt 00:02:34]} Qxg5 {[%clk 00:00:32]} {[%emt
00:00:35]} 37. hxg5 {[%clk 00:26:05]} {[%emt 00:00:05]} d3 {[%clk 00:00:32]}
{[%emt 00:00:31]} 38. Re8 {[%clk 00:26:04]} {[%emt 00:00:29]} d2 {[%clk
00:00:32]} {[%emt 00:00:31]} 39. Rxf8+ {[%clk 00:26:29]} {[%emt 00:00:05]} Bxf8
{[%clk 00:01:01]} {[%emt 00:00:02]} 40. Rd1 {[%clk 00:26:50]} {[%emt 00:00:08]}
Bb4 {[%clk 00:01:08]} {[%emt 00:00:24]} 41. Nf1 {[%clk 00:26:17]} {[%emt
00:01:01]} Bd5 {[%clk 00:00:43]} {[%emt 00:00:55]} 42. Nxd2 {[%clk 00:22:30]}
{[%emt 00:04:17]} Bxa2 {[%clk 00:01:07]} {[%emt 00:00:07]} 43. Nf3 {[%clk
00:13:16]} {[%emt 00:09:43]} a5 {[%clk 00:00:48]} {[%emt 00:00:49]} 44. Ne5
{[%clk 00:13:38]} {[%emt 00:00:08]} Bc3 {[%clk 00:00:43]} {[%emt 00:00:35]} 45.
Nxg6+ {[%clk 00:12:50]} {[%emt 00:01:18]} Kg7 {[%clk 00:00:51]} {[%emt
00:00:21]} 46. Rd3 {[%clk 00:12:28]} {[%emt 00:00:52]} Bb4 {[%clk 00:00:34]}
{[%emt 00:00:48]} 47. Nf4 {[%clk 00:12:34]} {[%emt 00:00:24]} h4 {[%clk
00:00:32]} {[%emt 00:00:32]} 48. Rd7+ {[%clk 00:12:08]} {[%emt 00:00:55]} Kf8
{[%clk 00:00:32]} {[%emt 00:00:31]} 49. Nd5 {[%clk 00:11:39]} {[%emt 00:00:59]}
Bc5 {[%clk 00:00:32]} {[%emt 00:00:31]} 50. g6 {[%clk 00:10:37]} {[%emt
00:01:31]} Bd4 {[%clk 00:00:49]} {[%emt 00:00:14]} 51. Rf7+ {[%clk 00:08:59]}
{[%emt 00:02:06]} Ke8 {[%clk 00:01:03]} {[%emt 00:00:17]} 52. Nf6+ {[%clk
00:09:22]} {[%emt 00:00:06]} 1-0